bitfinex-derivatives/quotes_SOLF0:USTF0_20251119
["timestamp","ask_amount","ask_price","bid_price","bid_amount"]
[1763511879098,3.13,139.77,139.72,37.78]
[1763511880194,3.18280048,139.76,139.73,0.04805117]
[1763511881595,0.05280048,139.76,139.73,0.04805117]
[1763511882796,0.05280048,139.76,139.73,3.05199364]
[1763511883099,0.05280048,139.76,139.75,6.4434]
[1763511883393,3.18280048,139.76,139.74,6.4438]
[1763511883595,0.05280048,139.76,139.74,6.4438]
[1763511883983,0.05280048,139.76,139.75,6.4434]
[1763511885403,3.18280048,139.76,139.73,6.49235117]
[1763511886300,3.18280048,139.76,139.73,44.27235117]
[1763511886801,0.05280048,139.76,139.74,6.4439]
[1763511887000,0.05280048,139.76,139.73,37.82805117]
[1763511887800,0.05280048,139.76,139.74,6.4439]
[1763511888796,0.05280048,139.76,139.75,6.4434]
[1763511890000,0.05280048,139.76,139.73,44.27205117]
[1763511890305,0.05280048,139.76,139.73,37.82805117]
[1763511891007,0.05280048,139.76,139.74,6.4435]
[1763511892492,0.05280048,139.76,139.75,6.4434]
[1763511896899,0.05280048,139.76,139.73,44.27195117]
[1763511897099,0.05280048,139.76,139.73,37.82805117]
[1763511897996,0.05280048,139.76,139.75,6.4434]
[1763511900108,3.13,139.82,139.77,6.4422]
[1763511900300,3.13,139.82,139.73,138.0209]
[1763511900504,3.13,139.82,139.73,37.78]
[1763511900706,3.13,139.8,139.77,6.4425]
[1763511901005,3.1846237,139.8,139.77,6.4922516]
[1763511901203,3.1846237,139.8,139.77,0.0497516]
[1763511901519,3.13,139.88,139.8,100.1954]
[1763511901807,3.13,139.88,139.85,1.92225216]
[1763511902005,3.13,139.88,139.85,8.36095216]
[1763511902397,3.17766448,139.88,139.85,8.41000914]
[1763511903802,3.17766448,139.88,139.85,1.97130914]
[1763511904112,0.04766448,139.88,139.85,39.75130914]
[1763511904811,3.02766448,139.88,139.85,39.75130914]
[1763511905208,3.02766448,139.88,139.85,0.04905698]
[1763511905513,9.46516448,139.88,139.85,0.04905698]
[1763511905714,2.98,139.87,139.83,37.78]
[1763511906712,2.98,139.86,139.83,37.78]
[1763511906913,2.98,139.86,139.84,0.04944025]
[1763511907115,3.03484676,139.86,139.84,0.04944025]
[1763511909210,3.03484676,139.86,139.85,1.92225216]
[1763511909211,0.05484676,139.86,139.85,1.92225216]
[1763511909522,2.98,139.92,139.85,1.92225216]
[1763511909708,2.98,139.92,139.87,8.36005216]
[1763511910404,0.04594168,139.91,139.88,0.04639174]
[1763511910717,3.02594168,139.91,139.88,0.04639174]
[1763511911302,2.98,139.9,139.88,0.04639174]
[1763511911803,9.4166,139.9,139.88,0.04639174]
[1763511912005,2.98,139.89,139.88,0.04639174]
[1763511915016,2.98,139.88,139.84,1.92225216]
[1763511915818,2.98,139.88,139.84,8.36145216]
[1763511916012,0.05311617,139.87,139.85,0.05451148]
[1763511920330,3.03311617,139.87,139.85,0.05451148]
[1763511920515,3.03311617,139.87,139.79,6.4413]
[1763511920715,2.98,139.84,139.8,1.92225216]
[1763511921220,2.98,139.84,139.78,39.68225216]
[1763511921416,2.98,139.83,139.78,37.76]
[1763511921622,2.98,139.81,139.8,0.05218219]
[1763511921818,3.02620376,139.82,139.8,0.05218219]
[1763511927838,0.04620376,139.82,139.8,0.05218219]
[1763511928430,137.8889,139.9,139.8,0.05218219]
[1763511928431,2.98,139.9,139.8,0.05218219]
[1763511928632,8.31296694,139.9,139.82,6.4401]
[1763511928832,2.98,139.86,139.82,6.4401]
[1763511929031,2.98,139.86,139.81,6.4403]
[1763511929230,2.98,139.86,139.8,100.1912]
[1763511929431,3.03188908,139.85,139.82,0.0476088]
[1763511929735,3.03366322,139.85,139.82,0.04941727]
[1763511930625,0.05366322,139.85,139.82,0.04941727]
[1763511930836,0.05366322,139.85,139.82,6.48941727]
[1763511932234,2.98,139.92,139.83,37.76]
[1763511932542,2.98,139.92,139.83,137.9314]
[1763511932742,2.98,139.97,139.85,105.16481107]
[1763511932935,200.1436,139.98,139.85,105.16391107]
[1763511932936,2.98,139.96,139.85,105.16391107]
[1763511933245,3.02850344,139.92,139.89,0.05245816]
[1763511933440,3.03024024,139.92,139.89,0.04977468]
[1763511933645,0.05024024,139.92,139.89,0.04977468]
[1763511934240,3.10024024,139.92,139.89,0.04977468]
[1763511935442,3.05,139.9,139.89,0.04977468]
[1763511936344,3.10024024,139.92,139.89,0.04977468]
[1763511936741,0.05024024,139.92,139.89,0.04977468]
[1763511937537,3.05,139.98,139.9,100.1233]
[1763511938749,0.04682806,139.95,139.93,0.04566995]
[1763511939748,3.09682806,139.95,139.93,0.04566995]
[1763511944655,0.04682806,139.95,139.93,0.04566995]
[1763511945048,3.09682806,139.95,139.93,0.04566995]
[1763511947552,0.04682806,139.95,139.93,0.04566995]
[1763511947854,3.09682806,139.95,139.93,0.04566995]
[1763511950763,3.05,139.94,139.93,0.04566995]
[1763511956164,0.04682806,139.95,139.93,0.04566995]
[1763511956760,0.04682806,139.95,139.93,6.48076995]
[1763511956953,0.04682806,139.95,139.93,0.04566995]
[1763511958562,0.04682806,139.95,139.93,6.48076995]
[1763511960171,3.05,140.0,139.93,0.04566995]
[1763511960356,3.05,140.0,139.94,100.0959]
[1763511960558,3.05,140.03,139.95,100.0875]
[1763511960860,3.05,140.03,139.97,100.0745]
[1763511961164,3.05,140.06,140.01,6.4313]
[1763511961355,0.05498105,140.05,140.02,0.04674526]
[1763511961556,3.10498105,140.05,140.02,0.04674526]
[1763511962566,0.05498105,140.05,140.02,0.04674526]
[1763511963063,0.05498105,140.05,140.03,37.72]
[1763511963261,3.16498105,140.05,140.03,37.72]
[1763511963567,0.05498105,140.05,140.03,37.72]
[1763511963971,3.16498105,140.05,140.03,37.72]
[1763511964176,0.05498105,140.05,140.03,37.72]
[1763511964656,3.16498105,140.05,140.03,37.72]
[1763511964861,0.05498105,140.05,140.03,37.72]
[1763511965568,3.16498105,140.05,140.03,37.72]
[1763511965764,3.16498105,140.05,140.02,37.74674526]
[1763511966259,3.16498105,140.05,140.02,0.04674526]
[1763511966459,3.16498105,140.05,140.02,37.74674526]
[1763511966664,3.16498105,140.05,140.02,0.04674526]
[1763511970068,3.11,140.04,139.92,100.1068]
[1763511970271,3.11,140.01,139.93,44.1349]
[1763511970475,3.11,140.01,139.93,37.7]
[1763511970973,3.11,139.97,139.96,0.04773925]
[1763511972070,0.04661769,139.98,139.96,0.04773925]
[1763511972372,3.15661769,139.98,139.96,0.04773925]
[1763511976463,0.04661769,139.98,139.96,0.04773925]
[1763511978676,3.15661769,139.98,139.96,0.04773925]
[1763511979173,0.04661769,139.98,139.96,0.04773925]
[1763511979378,0.04661769,139.98,139.96,6.48143925]
[1763511980473,3.15661769,139.98,139.96,0.04773925]
[1763511980774,3.15661769,139.98,139.89,40.69551984]
[1763511980973,3.11,139.95,139.86,2.99551984]
[1763511981177,3.11,139.95,139.8,162.1944]
[1763511981178,3.11,139.95,139.85,2.99551984]
[1763511981478,3.11,139.94,139.87,37.7]
[1763511981679,3.35266182,139.92,139.89,0.05447484]
[1763511983582,0.05266182,139.92,139.89,0.05447484]
[1763511983780,3.35266182,139.92,139.89,0.05447484]
[1763511984486,0.05266182,139.92,139.89,0.05447484]
[1763511985075,3.35266182,139.92,139.89,6.49127484]
[1763511985571,3.35266182,139.92,139.89,0.05447484]
[1763511988680,3.35266182,139.92,139.9,6.4363]
[1763511988877,0.05266182,139.92,139.9,6.4363]
[1763511991280,3.3,139.99,139.91,101.5349]
[1763511991587,3.3,140.01,139.92,100.1079]
[1763511991882,3.3,140.01,139.93,37.7]
[1763511992085,3.3,140.01,139.95,6.434]
[1763511992388,3.35259024,139.99,139.97,0.04758178]
[1763511992585,3.35182229,139.99,139.97,0.04675677]
[1763511994084,3.13,139.97,139.92,44.1353]
[1763511994982,6.4322,140.0,139.92,37.7]
[1763511995186,3.18098828,139.97,139.95,0.05341732]
[1763511996284,0.05098828,139.97,139.95,0.05341732]
[1763511996485,3.18098828,139.97,139.95,0.05341732]
[1763511998783,3.13,139.96,139.95,0.05341732]
[1763512000181,0.05098828,139.97,139.95,0.05341732]
[1763512001195,0.05098828,139.97,139.95,6.48751732]
[1763512002085,0.05098828,139.97,139.95,0.05341732]
[1763512002282,3.18098828,139.97,139.95,0.05341732]
[1763512002485,0.05098828,139.97,139.95,0.05341732]
[1763512002996,0.05098828,139.97,139.95,3.04826566]
[1763512003182,3.13,140.0,139.95,3.04826566]
[1763512003387,3.13,140.04,139.98,2.99484834]
[1763512004089,9.5602,140.04,139.98,2.99484834]
[1763512004291,3.13,140.03,139.97,37.7]
[1763512004493,3.13,140.01,140.0,0.0470582]
[1763512006493,3.13,140.01,139.97,2.99484834]
[1763512006794,3.13,140.01,139.94,40.69484834]
[1763512006995,3.13,139.99,139.95,6.4342]
[1763512007491,0.05200159,139.98,139.96,0.05259364]
[1763512007682,3.18200159,139.98,139.96,0.05259364]
[1763512010794,0.05200159,139.98,139.96,0.05259364]
[1763512011494,0.05200159,139.98,139.96,6.48619364]
[1763512012793,0.05200159,139.98,139.96,0.05259364]
[1763512013095,3.18200159,139.98,139.96,0.05259364]
[1763512013295,0.05200159,139.98,139.96,0.05259364]
[1763512013496,3.18200159,139.98,139.96,0.05259364]
[1763512016798,0.05200159,139.98,139.96,0.05259364]
[1763512017397,3.18200159,139.98,139.96,0.05259364]
[1763512018796,3.13,140.05,139.96,100.13089364]
[1763512018990,3.13,140.05,139.96,100.0783]
[1763512019399,3.13,140.05,139.98,108.40967937]
[1763512019596,3.13,140.05,139.99,37.68]
[1763512019800,0.04950849,140.03,140.01,0.05292683]
[1763512020799,3.13,140.05,140.01,0.05292683]
[1763512020999,6.5539209,140.1,140.01,0.05292683]
[1763512021000,3.13,140.08,140.01,0.05292683]
[1763512021313,3.13,140.07,140.01,37.68]
[1763512021491,3.13,140.06,140.0,4.98705509]
[1763512021696,3.13,140.06,139.99,37.68]
[1763512021898,3.13,140.03,140.01,0.0547235]
[1763512022794,0.04810758,140.04,140.01,0.0547235]
[1763512023000,3.17810758,140.04,140.01,0.0547235]
[1763512023610,0.04810758,140.04,140.01,0.0547235]
[1763512024604,0.04810758,140.04,140.02,6.4308]
[1763512024992,3.15,140.11,140.03,4.98705509]
[1763512025192,3.15,140.11,140.04,37.68]
[1763512025394,3.15,140.12,140.06,4.98705509]
[1763512025598,3.15,140.12,140.07,37.68]
[1763512026001,3.15,140.1,140.08,0.05502332]
[1763512026708,3.15,140.06,140.0,6.4316]
[1763512026903,3.15,140.06,139.99,37.68]
[1763512027101,3.15,140.06,139.99,42.66705509]
[1763512027604,9.5776,140.1,140.02,4.98705509]
[1763512027806,3.19784252,140.07,140.05,0.05015296]
[1763512029904,3.15,140.06,139.99,4.98705509]
[1763512030110,3.15,140.06,139.99,42.64705509]
[1763512030910,9.5798,140.05,139.99,49.07935509]
[1763512031206,3.19660147,140.03,140.01,0.04592466]
[1763512033011,3.19660147,140.03,140.01,1.96147608]
[1763512033813,3.19660147,140.03,140.01,0.04592466]
[1763512034004,3.19660147,140.03,140.01,1.96147608]
[1763512034810,0.04660147,140.03,140.01,1.96147608]
[1763512035211,0.04660147,140.03,140.01,8.39277608]
[1763512036909,3.15,140.06,140.02,6.4306]
[1763512037109,3.15,140.06,140.03,1.91555142]
[1763512038010,3.20267174,140.06,140.03,1.91555142]
[1763512038410,3.20267174,140.06,140.03,39.57555142]
[1763512038610,0.05267174,140.06,140.03,46.00605142]
[1763512038916,3.20267174,140.06,140.03,39.57555142]
[1763512040423,3.20267174,140.06,140.03,1.91555142]
[1763512041317,3.15,140.05,140.03,1.91555142]
[1763512044621,3.15,140.05,140.03,8.34605142]
[1763512045117,0.05267174,140.06,140.03,8.34605142]
[1763512046506,3.15267174,140.06,140.03,8.34605142]
[1763512047221,3.15267174,140.06,140.03,1.91555142]
[1763512048821,0.05267174,140.06,140.03,8.34605142]
[1763512049212,3.15267174,140.06,140.03,8.34605142]
[1763512049516,3.15267174,140.06,140.03,1.91555142]
[1763512050319,3.15267174,140.06,140.03,8.34595142]
[1763512050914,3.15267174,140.06,140.03,1.91555142]
[1763512052121,3.15267174,140.06,140.04,6.4301]
[1763512052314,0.05267174,140.06,140.04,6.4301]
[1763512052808,3.15267174,140.06,140.03,1.91555142]
[1763512054510,3.14,140.04,140.01,1.96147608]
[1763512061937,3.14,140.04,140.01,8.39287608]
[1763512062338,3.14,140.04,140.01,1.96147608]
[1763512062537,3.14,140.04,140.01,0.04592466]
[1763512063336,3.14,140.03,140.01,0.04592466]
[1763512065534,0.05267174,140.06,140.02,1.91555142]
[1763512065535,3.14,140.05,140.02,1.91555142]
[1763512065937,3.19267174,140.06,140.02,1.91555142]
[1763512066435,0.05267174,140.06,140.04,1.91555142]
[1763512066641,0.05267174,140.06,140.04,8.34555142]
[1763512067445,0.05267174,140.06,140.04,1.91555142]
[1763512067643,3.19267174,140.06,140.04,1.91555142]
[1763512071539,3.19267174,140.06,140.02,8.34615142]
[1763512071942,3.14,140.05,140.02,6.4306]
[1763512072240,3.14,140.05,140.02,1.91555142]
[1763512073543,6.431,140.02,139.95,6.4342]
[1763512073746,3.14,140.02,139.95,37.64]
[1763512074050,3.14,140.02,139.99,1.91555142]
[1763512074738,3.18637142,140.02,139.99,1.96214256]
[1763512078946,3.18637142,140.02,139.99,0.04659114]
[1763512080146,3.14,140.01,139.99,0.04659114]
[1763512080549,3.14,140.0,139.99,0.04659114]
[1763512082047,3.14,139.98,139.96,1.91555142]
[1763512082846,3.14,139.98,139.95,37.64]
[1763512083045,3.19397052,139.98,139.96,0.04821995]
[1763512084852,3.19397052,139.98,139.96,6.48201995]
[1763512085054,3.19397052,139.98,139.96,0.04821995]
[1763512086254,3.12,139.97,139.96,0.04821995]
[1763512088455,0.05397052,139.98,139.96,0.04821995]
[1763512088648,3.17397052,139.98,139.96,0.04821995]
[1763512090451,3.12,139.97,139.96,0.04821995]
[1763512091550,0.05397052,139.98,139.96,0.04821995]
[1763512092160,0.05397052,139.98,139.96,6.48191995]
[1763512094051,0.05397052,139.98,139.96,0.04821995]
[1763512094264,3.17397052,139.98,139.96,0.04821995]
[1763512095064,0.05397052,139.98,139.96,6.48201995]
[1763512095561,3.17397052,139.98,139.96,0.04821995]
[1763512097467,0.05397052,139.98,139.96,6.48191995]
[1763512098062,0.05397052,139.98,139.96,0.04821995]
[1763512101070,0.05397052,139.98,139.96,6.48181995]
[1763512101468,0.05397052,139.98,139.96,0.04821995]
[1763512102369,3.19397052,139.98,139.96,0.04821995]
[1763512105171,0.05397052,139.98,139.96,0.04821995]
[1763512105872,0.05397052,139.98,139.97,6.4333]
[1763512106067,0.05397052,139.98,139.96,0.04821995]
[1763512106873,0.05397052,139.98,139.97,6.4333]
[1763512111478,3.14,140.03,139.99,6.4322]
[1763512111981,3.14,140.03,140.0,6.4319]
[1763512112365,3.14,140.03,139.98,37.64]
[1763512113376,3.14,140.03,139.99,6.4324]
[1763512113572,3.14,140.03,139.98,37.64]
[1763512114972,3.14,140.03,139.98,44.0728]
[1763512114973,3.25,140.02,139.98,44.0728]
[1763512115872,0.04926166,140.01,139.99,0.05290155]
[1763512116074,3.29926166,140.01,139.99,0.05290155]
[1763512118084,0.04926166,140.01,139.99,0.05290155]
[1763512118484,3.29926166,140.01,139.99,0.05290155]
[1763512125391,9.73076166,140.01,139.99,0.05290155]
[1763512125587,3.25,140.0,139.99,0.05290155]
[1763512126696,0.04926166,140.01,139.99,0.05290155]
[1763512126985,3.29926166,140.01,139.99,0.05290155]
[1763512133587,0.04926166,140.01,139.99,6.48510155]
[1763512135994,3.25,140.0,139.99,6.48510155]
[1763512136194,3.25,140.0,139.99,0.05290155]
[1763512136689,3.29926166,140.01,139.99,0.05290155]
[1763512136890,3.25,139.98,139.91,2.99547371]
[1763512137091,3.25,139.98,139.93,37.62]
[1763512137389,3.25,140.01,139.94,2.99547371]
[1763512137790,3.29509119,139.99,139.96,0.04794513]
[1763512137989,3.29899878,139.99,139.96,0.0454663]
[1763512140299,3.29899878,139.99,139.96,6.4792663]
[1763512140997,3.29899878,139.99,139.96,0.0454663]
[1763512141894,3.29899878,139.99,139.96,6.4791663]
[1763512142603,3.29899878,139.99,139.96,0.0454663]
[1763512143300,3.25,139.98,139.96,0.0454663]
[1763512145107,0.04899878,139.99,139.96,1.96260164]
[1763512145601,0.04899878,139.99,139.96,0.0454663]
[1763512145809,0.04899878,139.99,139.97,1.91713534]
[1763512146409,0.04899878,139.99,139.98,6.4329]
[1763512151110,0.04899878,139.99,139.97,37.62]
[1763512151619,0.04899878,139.99,139.97,44.0533]
[1763512152308,0.04899878,139.99,139.98,6.4329]
[1763512154121,3.25,140.02,140.0,6.4319]
[1763512154310,8.71976699,140.05,139.98,1.91713534]
[1763512154507,5.46976699,140.04,139.98,1.91713534]
[1763512154812,3.25,140.04,140.0,1.91713534]
[1763512155215,0.05035073,140.03,140.01,0.05158677]
[1763512155418,0.05035073,140.03,140.02,6.431]
[1763512155619,0.05035073,140.03,140.01,37.67158677]
[1763512155914,0.05035073,140.03,140.02,6.431]
[1763512157505,3.25,140.07,140.04,6.43]
[1763512158414,3.25,140.07,140.04,6.48255843]
[1763512158620,3.29633375,140.07,140.04,0.05255843]
[1763512161727,3.27,140.06,140.04,0.05255843]
[1763512162026,3.27,140.04,139.99,39.51713534]
[1763512162318,3.27,140.04,140.0,6.4319]
[1763512162823,3.32065463,140.03,140.01,6.48525496]
[1763512163521,0.05065463,140.03,140.01,6.48525496]
[1763512163724,3.32065463,140.03,140.01,6.48525496]
[1763512163925,3.32065463,140.03,140.01,0.05375496]
[1763512168328,3.32065463,140.03,139.98,37.6]
[1763512168526,3.27,140.01,139.96,1.91713534]
[1763512169032,3.27,139.99,139.96,8.35093534]
[1763512169232,3.31737187,139.99,139.96,8.39877174]
[1763512169728,3.31737187,139.99,139.96,1.96497174]
[1763512170828,3.31737187,139.99,139.96,0.0478364]
[1763512171321,3.31737187,139.99,139.96,6.4815364]
[1763512174333,3.31737187,139.99,139.96,0.0478364]
[1763512175429,3.01,139.98,139.96,0.0478364]
[1763512175633,3.01,139.97,139.96,0.0478364]
[1763512176733,3.01,139.96,139.91,6.436]
[1763512177837,3.0637777,139.95,139.92,0.04712225]
[1763512178837,3.0637777,139.95,139.92,6.48262225]
[1763512180243,3.0637777,139.95,139.92,0.04712225]
[1763512181441,6.4359,139.92,139.86,1.91713534]
[1763512181648,3.01,139.91,139.84,1.91713534]
[1763512181939,3.01,139.91,139.85,6.4387]
[1763512182141,3.01,139.91,139.84,1.91713534]
[1763512182543,3.05922344,139.89,139.86,0.05263635]
[1763512183137,0.04922344,139.89,139.88,1.91713534]
[1763512183739,0.04922344,139.89,139.88,39.51713534]
[1763512189248,3.01,139.93,139.88,39.51713534]
[1763512189448,3.01,139.93,139.9,1.91713534]
[1763512190256,3.05881962,139.93,139.9,1.96226442]
[1763512190751,0.04881962,139.93,139.9,1.96226442]
[1763512190953,0.04881962,139.93,139.9,8.39866442]
[1763512191153,3.05881962,139.93,139.9,1.96226442]
[1763512191349,0.04881962,139.93,139.9,1.96226442]
[1763512191754,3.05881962,139.93,139.9,1.96226442]
[1763512192755,0.04881962,139.93,139.91,6.436]
[1763512195056,0.04881962,139.93,139.92,39.53713534]
[1763512196553,3.01,139.96,139.92,39.53713534]
[1763512196758,3.01,139.99,139.94,1.91713534]
[1763512197064,3.01,139.99,139.97,1.91713534]
[1763512197552,3.06171929,139.99,139.97,1.96722862]
[1763512200357,3.01,139.98,139.95,1.91713534]
[1763512200950,3.01,139.98,139.93,1.91713534]
[1763512201151,3.01,140.0,139.95,1.91713534]
[1763512201352,3.0628188,139.99,139.97,1.91713534]
[1763512201552,3.0628188,139.99,139.97,1.96321185]
[1763512201553,0.04662504,139.99,139.97,1.96321185]
[1763512201854,3.01,140.02,139.97,1.96321185]
[1763512202160,3.01,140.04,140.01,1.91713534]
[1763512202953,3.05743412,140.04,140.01,1.97203099]
[1763512203953,3.05743412,140.04,140.03,1.91713534]
[1763512204858,3.05743412,140.04,140.01,0.05489565]
[1763512205857,3.11,140.02,139.96,37.6]
[1763512206054,100.0317,140.03,139.96,37.6]
[1763512206055,3.11,139.99,139.96,37.6]
[1763512206959,3.16030127,139.99,139.96,37.65389565]
[1763512207861,0.05030127,139.99,139.96,37.65389565]
[1763512208162,0.05030127,139.99,139.98,2.99277618]
[1763512209460,3.16030127,139.99,139.98,2.99277618]
[1763512209646,0.05030127,139.99,139.98,2.99277618]
[1763512214064,0.05030127,139.99,139.97,9.42597618]
[1763512215765,0.05030127,139.99,139.97,2.99277618]
[1763512216065,3.16030127,139.99,139.97,2.99277618]
[1763512216361,3.16030127,139.99,139.96,37.65389565]
[1763512218252,9.59280127,139.99,139.96,37.65389565]
[1763512218456,3.16030127,139.99,139.96,37.65389565]
[1763512218862,3.16030127,139.99,139.96,44.08759565]
[1763512219274,3.16030127,139.99,139.96,37.65389565]
[1763512219459,0.05030127,139.99,139.96,37.65389565]
[1763512219665,0.05030127,139.99,139.97,6.4333]
[1763512221367,0.05030127,139.99,139.97,9.42607618]
[1763512222965,0.05030127,139.99,139.98,6.4328]
[1763512224568,3.27,140.07,139.97,103.06287618]
[1763512224764,3.27,140.07,140.0,2.99277618]
[1763512224971,3.27,140.05,140.01,37.58]
[1763512225370,5.40049571,140.08,140.01,37.58]
[1763512225371,3.3170124,140.04,140.02,0.05211403]
[1763512227265,9.7006,140.03,140.02,0.05211403]
[1763512228672,3.27,140.01,139.97,2.99277618]
[1763512229361,8.67077862,140.04,139.97,2.99277618]
[1763512229565,0.04762489,140.02,139.99,0.04696849]
[1763512229766,0.04762489,140.02,140.0,6.4319]
[1763512230970,0.04762489,140.02,140.01,6.4315]
[1763512231365,0.04762489,140.02,140.0,2.99277618]
[1763512231576,0.04762489,140.02,140.0,9.42467618]
[1763512234571,0.04762489,140.02,140.0,47.00467618]
[1763512236578,0.04762489,140.02,140.01,6.4315]
[1763512239584,3.21,140.06,140.02,6.4307]
[1763512239773,8.64054078,140.06,140.02,6.4307]
[1763512239973,3.21,140.05,140.02,6.4307]
[1763512240785,3.25763021,140.05,140.02,6.48121682]
[1763512243485,3.21,140.09,140.03,2.99277618]
[1763512244084,3.21,140.08,140.04,6.4301]
[1763512244587,0.04984389,140.07,140.05,0.04547121]
[1763512245095,3.25984389,140.07,140.05,0.04547121]
[1763512245978,0.04984389,140.07,140.05,0.04547121]
[1763512246782,0.04984389,140.07,140.05,6.47497121]
[1763512247081,8.6338806,140.12,140.06,2.99277618]
[1763512247284,3.21,140.1,140.06,2.99277618]
[1763512248288,0.04739456,140.09,140.07,0.05265563]
[1763512249792,3.25739456,140.09,140.07,0.05265563]
[1763512250184,3.21,140.08,140.07,0.05265563]
[1763512254396,6.47529456,140.09,140.07,0.05265563]
[1763512254397,0.04739456,140.09,140.07,0.05265563]
[1763512254697,3.25739456,140.09,140.07,0.05265563]
[1763512256900,9.68529456,140.09,140.07,0.05265563]
[1763512257596,3.21,140.08,140.07,0.05265563]
[1763512266112,3.3,140.07,140.03,8.34527181]
[1763512267009,3.3,140.06,140.03,8.34527181]
[1763512267218,3.34632449,140.06,140.03,8.39798665]
[1763512267715,0.04632449,140.06,140.05,1.91477181]
[1763512268320,3.3,140.09,140.05,1.91477181]
[1763512268519,3.3,140.09,140.07,1.91477181]
[1763512269016,3.3,140.11,140.07,1.91477181]
[1763512269318,3.3,140.11,140.04,137.5612]
[1763512269319,0.05054417,140.1,140.09,1.91477181]
[1763512269519,3.35054417,140.1,140.08,0.04749085]
[1763512270714,0.05054417,140.1,140.09,1.91477181]
[1763512271115,3.35054417,140.1,140.09,1.91477181]
[1763512273020,0.05054417,140.1,140.09,1.91477181]
[1763512274318,3.3,140.13,140.09,1.91477181]
[1763512274624,5.42013241,140.15,140.11,1.91477181]
[1763512274625,3.3,140.15,140.11,1.91477181]
[1763512274814,3.3,140.14,140.11,1.91477181]
[1763512275723,3.34811865,140.14,140.11,1.96154701]
[1763512275926,3.3,140.13,140.11,1.96154701]
[1763512276223,3.3,140.13,140.11,0.0467752]
[1763512276423,3.3,140.13,140.11,1.96154701]
[1763512277028,0.04811865,140.14,140.11,1.96154701]
[1763512277225,0.04811865,140.14,140.13,1.91477181]
[1763512277620,3.34811865,140.14,140.13,1.91477181]
[1763512277821,3.34811865,140.14,140.11,1.96154701]
[1763512279432,3.3,140.13,140.11,1.96154701]
[1763512279929,9.7261,140.13,140.11,0.0467752]
[1763512280124,3.3,140.12,140.11,1.96154701]
[1763512281328,3.34811865,140.14,140.11,1.96154701]
[1763512281831,3.34811865,140.14,140.13,1.91477181]
[1763512282926,3.34811865,140.14,140.11,1.96154701]
[1763512283132,3.03,140.13,140.11,1.96154701]
[1763512283628,9.456,140.13,140.11,1.96154701]
[1763512283831,3.03,140.12,140.11,1.96154701]
[1763512284536,3.07811865,140.14,140.11,1.96154701]
[1763512285735,3.07811865,140.14,140.11,8.38834701]
[1763512286532,3.07811865,140.14,140.11,1.96154701]
[1763512287034,3.03,140.12,140.11,1.96154701]
[1763512288437,3.03,140.12,140.11,0.0467752]
[1763512289741,3.07811865,140.14,140.11,1.96154701]
[1763512290435,3.07811865,140.14,140.11,0.0467752]
[1763512290436,3.03,140.13,140.11,0.0467752]
[1763512290932,3.03,140.13,140.11,1.96154701]
[1763512291136,3.03,140.12,140.11,1.96154701]
[1763512291333,3.03,140.13,140.11,1.96154701]
[1763512293441,3.03,140.13,140.11,8.38834701]
[1763512293739,3.07811865,140.14,140.11,8.38834701]
[1763512293942,3.07811865,140.14,140.13,1.91477181]
[1763512296230,0.04811865,140.14,140.13,1.91477181]
[1763512296735,3.07811865,140.14,140.13,1.91477181]
[1763512297239,0.04811865,140.14,140.13,1.91477181]
[1763512297832,3.07811865,140.14,140.13,1.91477181]
[1763512299340,0.04811865,140.14,140.13,1.91477181]
[1763512300847,0.04811865,140.14,140.13,8.34077181]
[1763512301140,0.04811865,140.14,140.13,1.91477181]
[1763512303946,0.04811865,140.14,140.13,8.34077181]
[1763512315748,0.04811865,140.14,140.11,6.4734752]
[1763512315951,0.04811865,140.14,140.13,1.91477181]
[1763512318449,0.04811865,140.14,140.13,8.34077181]
[1763512322058,3.03,140.19,140.13,1.91477181]
[1763512322356,8.46665876,140.18,140.11,137.4507]
[1763512322554,3.03,140.18,140.15,1.91477181]
[1763512322947,6.57248665,140.21,140.15,1.96132426]
[1763512322948,3.03,140.16,140.15,1.96132426]
[1763512323147,3.03,140.16,140.15,0.04655245]
[1763512323543,3.02,140.15,140.11,1.91477181]
[1763512323754,8.45583675,140.14,140.11,1.91477181]
[1763512324051,9.4452,140.15,140.11,1.91477181]
[1763512324254,5.43583675,140.14,140.11,1.91477181]
[1763512324451,3.02,140.17,140.11,1.91477181]